[Event "CCT Julius Baer-D3 2024"]
[Site "Online"]
[Date "2024.09.27"]
[Round "51.2"]
[White "Svane, Frederik"]
[Black "Yilmaz, Mustafa"]
[Result "1-0"]
[ECO "B86"]
[WhiteElo "2640"]
[BlackElo "2587"]
[Annotator "TA"]
[PlyCount "55"]
[EventDate "2024.09.25"]
[EventType "swiss"]
[EventCountry "NET"]
[SourceTitle "playchess.com"]
[Source "ChessBase"]
[SourceQuality "1"]
[TimeControl "600+2"]

{[%evp 17,55,0,9,0,0,0,0,-38,-6,-31,63,47,0,5,193,207,429,427,443,116,135,123,393,362,484,443,589,597,584,581,930,922,1077,1096,1096,1033,29985,29986,29986,29986]} 1. e4 {[%emt 0:00:02]} c5 {[%emt 0:00:04]} 2. Nf3 {[%emt 0:00:02]} d6 {[%emt 0:00:00]} 3. d4 {[%emt 0:00:01]} cxd4 {[%emt 0:00:01]} 4. Nxd4 {[%emt 0:00:00]} Nf6 {[%emt 0:00:00]} 5. Nc3 {[%emt 0:00:01]} a6 {[%emt 0:00:00]} 6. Bc4 {[%emt 0:00:05]} e6 {[%emt 0:00:02]} 7. Bb3 {[%emt 0:00:03]} Nbd7 {[%emt 0:00:01]} 8. Be3 {[%emt 0:00:12]} Nc5 {[%emt 0:00:01]} 9. f3 {[%emt 0:00:01]} Be7 {[%emt 0:00:09]} 10. g4 {[%emt 0:00:11]} Nfd7 {[%emt 0:00:43]} 11. Qd2 {[%emt 0:00:02]} Bh4+ {[%emt 0:00:01]} 12. Ke2 {[%emt 0:00:01] The position is equal.} b5 {[%emt 0:01:14][%cal Bb7b5,Bb5c4][%mdl 32]} 13. g5 {[%emt 0:02:08]} g6 {[%emt 0:00:39]} ({Black should try} 13... O-O $15) 14. Rhg1 {[%emt 0:00:11] Strongly threatening Rg4.} (14. Rag1 $5 h6 15. Kd1 $17 (15. gxh6 Nxb3 16. axb3 Bb7 $11)) 14... h6 $1 {[%emt 0:00:07]} 15. gxh6 {[%emt 0:00:38]} Ne5 $2 {[%emt 0:01:01]} (15... Bb7 $11 {and Black is okay.}) 16. f4 $18 {[%emt 0:00:44]} Nc4 {[%emt 0:00:06]} (16... Ned7) 17. Bxc4 {[%emt 0:00:01]} bxc4 {[%emt 0:00:00]} 18. Nc6 {[%emt 0:02:13] Prevents Qe7.} (18. f5 $18 {and White stays clearly on top.}) 18... Qc7 $16 {[%emt 0:00:24] [#]} 19. Qd4 $1 $36 {[%emt 0:00:09][%csl LRc4,LRh8][%mdl 2048] Black is under strong pressure. Really sharp! White is more active.} Rh7 {[%emt 0:00:34][%mdl 8192] [#]} (19... Rxh6 $16 {was necessary.} 20. Qg7 Qxc6) 20. Qg7 $3 $18 {[%emt 0:00:10][%mdl 512]} Rxg7 {[%emt 0:00:19]} (20... Qxc6 21. f5) 21. hxg7 {[%emt 0:00:02]} Qxc6 {[%emt 0:00:04]} 22. g8=Q+ {[%emt 0:00:26]} (22. g8=R+ $2 {loses.} Ke7 23. Rg4 Nxe4 (23... Bf6 $2 24. e5 $19) 24. Rxh4 Nxc3+ 25. bxc3 Qg2+ 26. Ke1 Qxc2 $19 (26... Qh1+ $2 27. Kd2 $19)) 22... Ke7 {[%emt 0:00:56] And now ...Bb7 would win.} 23. Qh7 {[%emt 0:00:01][%csl LRg6,LRh4]} Bf6 {[%emt 0:00:03] aiming for ...Bb7.} 24. e5 {[%emt 0:00:00]} ({Worse is} 24. Rxg6 Nxe4 25. Rxf6 Nxf6 $11) 24... Bb7 {[%emt 0:00:57]} 25. exf6+ {[%emt 0:00:02]} Kxf6 {[%emt 0:00:00]} 26. Raf1 {[%emt 0:00:47] Black must now prevent Qh4+.} Ne4 {[%emt 0:00:06] [#]} 27. Rxg6+ $3 {[%emt 0:00:01][%mdl 512]} Ke7 {[%emt 0:00:29]} 28. f5 {[%emt 0:00:06] Weighted Error Value: White=0.27 (precise) /Black=1.20.  Loses game:     	---       	Black=2      Missed win:     	White=1     	---        Mistake:       	---       	Black=2      Inaccurate:     	White=1     	Black=4      OK:         	White=6     	Black=2      Best:        	White=3     	Black=2      Strong:       	White=1     	Black=1} 1-0

[Event "CCT Julius Baer-D3 2024"]
[Site "Online"]
[Date "2024.09.27"]
[Round "51.2"]
[White "Amin, Bassem"]
[Black "Guseinov, Gadir"]
[Result "1-0"]
[ECO "A08"]
[WhiteElo "2636"]
[BlackElo "2636"]
[Annotator "TA"]
[PlyCount "61"]
[EventDate "2024.09.25"]
[EventType "swiss"]
[EventCountry "NET"]
[SourceTitle "playchess.com"]
[Source "ChessBase"]
[SourceQuality "1"]
[TimeControl "600+2"]

{[%evp 20,61,-8,-13,47,40,81,86,75,92,119,102,173,177,263,249,258,255,251,255,306,309,367,229,231,211,222,204,387,197,295,314,316,314,339,131,126,118,122,88,470,470,830,518]} 1. e4 {[%emt 0:00:02]} c5 {[%emt 0:00:03]} 2. Nf3 {[%emt 0:00:03]} e6 {[%emt 0:00:00]} 3. d3 {[%emt 0:00:02]} d5 {[%emt 0:00:04]} 4. Nbd2 {[%emt 0:00:01]} Nc6 {[%emt 0:00:08]} 5. g3 {[%emt 0:00:01]} g6 {[%emt 0:00:00]} 6. Bg2 {[%emt 0:00:01]} Bg7 {[%emt 0:00:01]} 7. O-O {[%emt 0:00:01]} Nge7 {[%emt 0:00:00]} 8. Re1 {[%emt 0:00:00]} O-O {[%emt 0:00:01]} 9. h4 {[%emt 0:00:10]} b5 {[%emt 0:00:10]} 10. e5 {[%emt 0:00:01]} Qc7 {[%emt 0:00:03]} 11. Qe2 {[%emt 0:00:01]} f6 {[%emt 0:00:07]} ({Black should try} 11... a5 $11) 12. exf6 {[%emt 0:00:03]} Bxf6 {[%emt 0:00:00]} 13. c4 {[%emt 0:00:18]} bxc4 {[%emt 0:00:28] White is better.} 14. dxc4 {[%emt 0:00:00]} Rb8 {[%emt 0:00:01]} 15. Nb3 {[%emt 0:00:06][%cal Bd2b3,Bb3c5,Bc5e4,Be4f6][%mdl 32]} dxc4 {[%emt 0:01:16]} (15... Bg7 $16 {was necessary.}) 16. Bf4 $18 {[%emt 0:01:26]} (16. Nxc5 $6 Nd4 17. Qxc4 Rb5 18. Nxd4 Rxc5 $11) 16... e5 {[%emt 0:00:08]} (16... Qb6 $142) 17. Qxc4+ {[%emt 0:00:05]} (17. Bxe5 $2 Nxe5 18. Nxe5 cxb3 $19) 17... Kg7 {[%emt 0:00:01]} 18. Bd2 {[%emt 0:00:30]} Qb6 {[%emt 0:00:57]} 19. Nxc5 {[%emt 0:00:25]} Qxb2 {[%emt 0:00:01]} 20. Ne4 {[%emt 0:00:15]} Qb5 {[%emt 0:00:20]} 21. Qxb5 {[%emt 0:00:39]} Rxb5 {[%emt 0:00:00]} 22. a4 {[%emt 0:00:10]} Rb2 {[%emt 0:00:28]} 23. Rac1 {[%emt 0:00:45] aiming for Nxf6.} Ra2 $2 {[%emt 0:00:25]} (23... Bg4 {is a better defense.} 24. Be3 Ra2) 24. Be3 {[%emt 0:02:21]} (24. Nxf6 $142 Rxf6 25. Bg5 (25. Nxe5 Rxd2 26. Nxc6 Nxc6 $16)) 24... Rxa4 {[%emt 0:00:43] [#]} (24... Bg4 $142 25. Nfg5 h6) 25. Nxf6 $1 {[%emt 0:00:04]} Rxf6 {[%emt 0:00:03]} 26. Bg5 {[%emt 0:00:05][%csl LRe5,LRf6] This pair of bishops is nice.} Re6 {[%emt 0:00:29]} 27. Rc5 $2 {[%emt 0:00:30]} (27. Bxe7 $18 Nxe7 28. Rc7 (28. Nxe5 Kf6 $16) (28. Rxe5 Rxe5 29. Nxe5 Bg4 $16)) 27... h6 $16 {[%emt 0:02:05]} 28. Bxe7 {[%emt 0:00:51]} (28. Nxe5 Nxe5 (28... hxg5 29. Bxc6 Nxc6 30. Rxc6 $11) 29. Rcxe5 hxg5 $17) 28... Nxe7 {[%emt 0:00:02]} 29. Nxe5 {[%emt 0:00:01] Bh3 would now be deadly. White is more active.} (29. Rcxe5 Rxe5 30. Nxe5 Kf6 $14) 29... Rf6 $2 {[%emt 0:01:40][%mdl 8192] [#]} (29... g5 $16 {is tougher.}) 30. Rc7 $18 {[%emt 0:00:06]} ({Not} 30. Nxg6 Nxg6 31. Rxc8 Ra5 $18) 30... Kf8 {[%emt 0:00:02]} (30... Re6 $142 31. Bd5 Ra1 32. Rxa1 Rxe5 33. Raxa7 Rxd5 34. Rxc8 (34. Rxe7+ Kf6 $18) 34... Re5) 31. Nc6 {[%emt 0:00:26] Weighted Error Value: White=0.32/Black=0.76.  Loses game:     	---       	Black=1      Missed win:     	White=1     	---        Mistake:       	White=1     	Black=5      Inaccurate:     	White=2     	Black=1      OK:         	White=9     	Black=4      Best:        	White=3     	---        Strong:       	White=1     	---} 1-0

[Event "CCT Julius Baer-D3 2024"]
[Site "Online"]
[Date "2024.09.27"]
[Round "51.3"]
[White "Svane, Frederik"]
[Black "Yilmaz, Mustafa"]
[Result "1-0"]
[ECO "C88"]
[WhiteElo "2640"]
[BlackElo "2587"]
[Annotator "RC"]
[PlyCount "141"]
[EventDate "2024.09.25"]
[EventType "swiss"]
[EventCountry "NET"]
[SourceTitle "playchess.com"]
[Source "ChessBase"]
[SourceQuality "1"]
[TimeControl "600+2"]

1. e4 {[%emt 0:00:05]} e5 {[%emt 0:02:06]} 2. Nf3 {[%emt 0:00:03]} Nc6 {[%emt 0:00:03]} 3. Bb5 {[%emt 0:00:03]} a6 {[%emt 0:00:03]} 4. Ba4 {[%emt 0:00:03]} Nf6 {[%emt 0:00:02]} 5. O-O {[%emt 0:00:02]} Be7 {[%emt 0:00:03]} 6. Re1 {[%emt 0:00:04]} b5 {[%emt 0:00:03]} 7. Bb3 {[%emt 0:00:03]} O-O {[%emt 0:00:03]} 8. a4 {[%emt 0:00:13]} b4 {[%emt 0:00:03]} 9. d4 {[%emt 0:00:06]} d6 {[%emt 0:00:02]} 10. dxe5 {[%emt 0:00:05]} Nxe5 {[%emt 0:00:02]} 11. Nbd2 {[%emt 0:00:18]} a5 {[%emt 0:00:09]} 12. Nc4 {[%emt 0:00:14]} Nxc4 {[%emt 0:01:06]} 13. Bxc4 {[%emt 0:00:02]} Bb7 {[%emt 0:00:03]} 14. Qd3 {[%emt 0:01:48]} Nd7 {[%emt 0:00:24]} 15. Bd5 {[%emt 0:00:14]} Nc5 {[%emt 0:00:03]} 16. Qd1 {[%emt 0:00:14]} Qc8 {[%emt 0:00:51]} 17. Be3 {[%emt 0:00:43]} Bxd5 {[%emt 0:00:11]} 18. Qxd5 {[%emt 0:00:19]} c6 {[%emt 0:00:08]} 19. Qc4 {[%emt 0:00:55]} Qe6 {[%emt 0:00:08]} 20. Nd2 {[%emt 0:00:31]} Qxc4 {[%emt 0:00:52]} 21. Nxc4 {[%emt 0:00:02]} Nxe4 {[%emt 0:00:04]} 22. Bb6 {[%emt 0:00:03]} d5 {[%emt 0:00:04]} 23. Nxa5 {[%emt 0:00:03]} Rfc8 {[%emt 0:00:21]} 24. Nb3 {[%emt 0:00:04]} Bf6 {[%emt 0:00:12]} 25. Bd4 {[%emt 0:00:12]} Bxd4 {[%emt 0:00:19]} 26. Nxd4 {[%emt 0:00:02]} Kf8 {[%emt 0:00:04]} 27. a5 {[%emt 0:00:19]} Ra6 {[%emt 0:00:04]} 28. Ra4 {[%emt 0:00:19]} Rca8 {[%emt 0:00:08]} 29. Nb3 {[%emt 0:00:26]} c5 {[%emt 0:00:41]} 30. f3 {[%emt 0:00:02]} c4 {[%emt 0:00:03]} 31. Nd4 {[%emt 0:00:03]} Nc5 {[%emt 0:00:15]} 32. Rxb4 {[%emt 0:00:03]} Rxa5 {[%emt 0:00:03]} 33. Kf2 {[%emt 0:00:02]} Ra4 {[%emt 0:00:08]} 34. Rb5 {[%emt 0:00:06]} R4a5 {[%emt 0:00:04]} 35. Rb6 {[%emt 0:00:10]} R5a6 {[%emt 0:00:04]} 36. Rb4 {[%emt 0:00:06]} Ra4 {[%emt 0:00:03]} 37. Rxa4 {[%emt 0:00:02]} Nxa4 {[%emt 0:00:03]} 38. Ra1 {[%emt 0:00:08]} Ke7 {[%emt 0:00:20]} 39. Ke3 {[%emt 0:00:15]} Kd7 {[%emt 0:00:12]} 40. Kf4 {[%emt 0:00:24]} Nb6 {[%emt 0:00:03]} 41. Rxa8 {[%emt 0:00:04]} Nxa8 {[%emt 0:00:02]} 42. Ke5 {[%emt 0:00:06]} Nc7 {[%emt 0:00:03]} 43. Nf5 {[%emt 0:00:04]} f6+ {[%emt 0:00:04]} 44. Kd4 {[%emt 0:00:03]} g6 {[%emt 0:00:04]} 45. Ne3 {[%emt 0:00:05]} Kd6 {[%emt 0:00:05]} 46. Ng4 {[%emt 0:00:08]} Ne6+ {[%emt 0:00:07]} 47. Kc3 {[%emt 0:00:08]} f5 {[%emt 0:00:03]} 48. Nf6 {[%emt 0:00:08]} Nf8 {[%emt 0:00:10]} 49. Kd4 {[%emt 0:00:08]} Ne6+ {[%emt 0:00:04]} 50. Kc3 {[%emt 0:00:03]} Nf8 {[%emt 0:00:03]} 51. g4 {[%emt 0:00:22]} fxg4 {[%emt 0:00:02]} 52. fxg4 {[%emt 0:00:03]} g5 {[%emt 0:00:02]} 53. b4 {[%emt 0:00:06]} cxb3 {[%emt 0:00:03]} 54. cxb3 {[%emt 0:00:03]} Ke5 {[%emt 0:00:03]} 55. Ne8 {[%emt 0:00:10]} Ne6 {[%emt 0:00:04]} 56. b4 {[%emt 0:00:03]} d4+ {[%emt 0:00:04]} 57. Kc4 {[%emt 0:00:03]} Nf4 {[%emt 0:00:03]} 58. b5 {[%emt 0:00:05]} d3 {[%emt 0:00:03]} 59. Kc3 {[%emt 0:00:10]} Ke4 {[%emt 0:00:04]} 60. Nd6+ {[%emt 0:00:09]} Kd5 {[%emt 0:00:13]} 61. Nf7 {[%emt 0:00:04]} h5 {[%emt 0:00:23]} 62. gxh5 {[%emt 0:00:04]} Nxh5 {[%emt 0:00:02]} 63. Nxg5 {[%emt 0:00:10]} Nf4 {[%emt 0:00:03]} 64. Nf3 {[%emt 0:00:25]} Kc5 {[%emt 0:00:03]} 65. Nd4 {[%emt 0:00:02]} Ne2+ {[%emt 0:00:09]} 66. Nxe2 {[%emt 0:00:03]} dxe2 {[%emt 0:00:02]} 67. Kd2 {[%emt 0:00:02]} Kxb5 {[%emt 0:00:03]} 68. h4 {[%emt 0:00:03]} Kc5 {[%emt 0:00:02]} 69. h5 {[%emt 0:00:02]} Kd6 {[%emt 0:00:02]} 70. h6 {[%emt 0:00:03]} Ke6 {[%emt 0:00:06]} 71. h7 {[%emt 0:00:02]} 1-0

[Event "CCT Julius Baer-D3 2024"]
[Site "Online"]
[Date "2024.09.27"]
[Round "51.3"]
[White "Hakobyan, Aram"]
[Black "Sargissian, Gabriel"]
[Result "1-0"]
[ECO "C47"]
[WhiteElo "2617"]
[BlackElo "2646"]
[Annotator "TA"]
[PlyCount "79"]
[EventDate "2024.09.25"]
[EventType "swiss"]
[EventCountry "NET"]
[SourceTitle "playchess.com"]
[Source "ChessBase"]
[SourceQuality "1"]
[TimeControl "600+2"]

{[%evp 9,79,-18,0,0,0,0,0,0,0,0,0,-4,0,0,31,-23,-30,-14,-39,-41,-32,-45,0,-26,-43,-50,-57,-202,-204,-256,-207,-308,-308,-432,-37,-39,149,127,182,194,169,161,331,112,102,81,92,72,158,139,249,227,361,327,353,343,418,339,356,356,351,353,358,285,377,378,407,382,486,443,441,383]} 1. e4 {[%emt 0:00:04]} e5 {[%emt 0:02:05]} 2. Nf3 {[%emt 0:00:04]} Nc6 {[%emt 0:00:03]} 3. Nc3 {[%emt 0:00:02]} Nf6 {[%emt 0:00:03]} 4. Nd5 {[%emt 0:00:02]} Bc5 {[%emt 0:00:02]} 5. c3 {[%emt 0:00:03]} O-O {[%emt 0:00:03]} 6. d3 {[%emt 0:00:03]} h6 {[%emt 0:00:10]} 7. Nxf6+ {[%emt 0:00:03]} Qxf6 {[%emt 0:00:03]} 8. g4 {[%emt 0:00:02] The position is equal.} d5 {[%emt 0:00:32] [#] Hoping for ...dxe4.} 9. g5 {[%emt 0:00:06]} hxg5 {[%emt 0:00:09]} 10. Bxg5 {[%emt 0:00:03]} Qd6 {[%emt 0:00:03]} 11. Rg1 {[%emt 0:00:36] Repels Bg4} Re8 {[%emt 0:00:29]} 12. b4 {[%emt 0:00:40]} ({White should try} 12. Nd2 $14) 12... Bb6 $11 {[%emt 0:00:05]} 13. a4 {[%emt 0:00:38] [#] Strongly threatening a5.} a5 {[%emt 0:00:08]} 14. b5 {[%emt 0:00:04]} Ne7 {[%emt 0:00:06][%cal Bc6e7,Be7g6,Bg6f4][%mdl 32]} 15. h4 {[%emt 0:00:30]} Ng6 {[%emt 0:00:10]} 16. h5 {[%emt 0:00:35]} Nf4 {[%emt 0:00:05]} 17. h6 {[%emt 0:00:02]} g6 {[%emt 0:00:05]} 18. Rh1 {[%emt 0:00:08]} (18. Qd2 $15) 18... Bg4 $19 {[%emt 0:00:22] ...dxe4 is the strong threat.} 19. h7+ {[%emt 0:00:40]} Kh8 {[%emt 0:00:05] aiming for ...f6.} 20. Rh4 {[%emt 0:00:05]} (20. Be2 $142) 20... Bh5 {[%emt 0:00:35]} 21. d4 {[%emt 0:01:24]} (21. Bh3 $142) 21... dxe4 $2 {[%emt 0:01:46]} (21... exd4 $19 22. Rxf4 Rxe4+ (22... dxe4 $2 23. Bf6+ Kxh7 24. Ng5+ Kg8 25. Qb3 $18) 23. Rxe4 dxe4 24. cxd4 exf3 (24... Bxf3 $2 25. Be2 $19)) 22. Nxe5 $1 $15 {[%emt 0:00:08]} Rxe5 {[%emt 0:00:06]} (22... Bxd1 $2 23. Nxf7+ Kg7 24. Nxd6 cxd6 25. h8=B+ (25. Kxd1 Nd5 $18) (25. Bxf4 Bh5 $18) (25. Rxf4 Bb3 $18) (25. Rxd1 Nd5 $18) 25... Rxh8 26. Rxf4 $18 (26. Rxd1 Rxh4 27. Bxh4 Kh6 $11)) (22... Nd3+ $1 $15 23. Bxd3 exd3) 23. Bxf4 $16 {[%emt 0:00:06]} Bxd1 {[%emt 0:00:16]} (23... Rf5 $16 24. Bxd6 Bxd1 25. Be5+ (25. Rxd1 cxd6 26. Rxe4 Bd8 $16) (25. Rxe4 $2 Bf3 $19) 25... f6) 24. Bxe5+ $18 {[%emt 0:00:05]} (24. dxe5 $2 {is the wrong capture.} Qc5 25. Ra2 Bxa4 $19 (25... Qxc3+ $2 26. Bd2 $19) (25... Bb3 $2 26. Rd2 $19) (25... Qxc3+ $2 26. Bd2 $19) (25... Bb3 $2 26. Rd2 $19)) 24... Qxe5 {[%emt 0:00:07]} 25. dxe5 {[%emt 0:00:02]} Bc2 {[%emt 0:00:22]} (25... Bb3 {was worth a try.} 26. Rb1 (26. Rxe4 Re8 $16) 26... Bd5) 26. Bg2 $2 {[%emt 0:00:27]} (26. Bc4 $18 {has better winning chances.}) 26... Re8 $16 {[%emt 0:00:08]} 27. Kd2 {[%emt 0:00:18]} Bb3 {[%emt 0:00:26]} (27... Bxf2 $2 {loses.} 28. Rf4 Bb3 29. Rxf2 $18) 28. Rxe4 {[%emt 0:00:18] And now c4 would win.} Rd8+ {[%emt 0:00:11]} (28... Bxf2 $142 29. Rb1 Be6) 29. Ke1 {[%emt 0:00:28]} Rd3 {[%emt 0:00:18]} (29... Re8 $16 30. Kf1 Kxh7) 30. Rc1 {[%emt 0:00:18]} Kxh7 {[%emt 0:00:29]} (30... Bc5 $142 31. Rh4 b6) 31. Rh4+ $18 {[%emt 0:00:25]} Kg7 {[%emt 0:00:03]} 32. Bxb7 {[%emt 0:00:02]} Bc5 {[%emt 0:00:03]} 33. Be4 {[%emt 0:00:18]} Rd8 {[%emt 0:00:10]} 34. Bc2 {[%emt 0:00:27]} Be6 {[%emt 0:00:06]} 35. Rd1 {[%emt 0:00:07]} Re8 {[%emt 0:00:03]} 36. Kf1 {[%emt 0:00:08]} Bc8 {[%emt 0:00:10]} 37. f4 {[%emt 0:00:07]} Be6 {[%emt 0:00:12]} 38. Rd2 {[%emt 0:00:17]} Bc4+ {[%emt 0:00:12]} 39. Ke1 {[%emt 0:00:04]} Be7 {[%emt 0:00:20]} 40. Rh1 {[%emt 0:00:04] Weighted Error Value: White=0.40/Black=0.48.  Missed win:     	White=1     	Black=1      Mistake:       	White=4     	Black=6      Inaccurate:     	White=1     	Black=2      OK:         	White=12    	Black=13     Best:        	White=4     	Black=3      Strong:       	White=1     	---} 1-0